[Event "FIDE WSTC Open 50 2025"]
[Site "Prague"]
[Date "2025.02.21"]
[Round "5.19"]
[White "Varga, Zoltan"]
[Black "Olafsson, Helgi"]
[Result "1/2-1/2"]
[Annotator "TA"]
[ECO "C10"]
[WhiteElo "2301"]
[BlackElo "2466"]
[PlyCount "22"]
[EventDate "2025.02.17"]
[EventType "team-tourn"]
[EventCountry "CZE"]
[SourceTitle "playchess.com"]
[Source "ChessBase"]
[SourceQuality "1"]
[TimeControl "40/5400+30:1800+30"]

{[%evp 12,22,31,7,12,15,18,8,5,19,14,10,11]} 1. e4 {[%emt 0:00:03]} e6 {[%emt 0:00:12]} 2. d4 {[%emt 0:00:34]} d5 {[%emt 0:00:06]} 3. Nc3 {[%emt 0:03:22]} dxe4 {[%emt 0:00:29]} 4. Nxe4 {[%emt 0:00:07]} Nd7 {[%emt 0:00:04]} 5. Nf3 {[%emt 0:00:33]} Ngf6 {[%emt 0:00:06]} 6. Nxf6+ {[%emt 0:01:31]} Nxf6 {[%emt 0:00:09]} 7. Be3 {[%emt 0:01:05]} Bd6 {[%emt 0:00:19] The position is equal. C10: French with 3 Nc3: Unusual Black 3rd moves and 3...dxe4.} 8. g3 {[%emt 0:07:23]} b6 $146 {[%emt 0:00:39]} ({Predecessor:} 8... O-O 9. Bg2 c6 10. O-O Qc7 11. c4 Rd8 12. Qe2 c5 13. Rac1 Bd7 14. dxc5 Bxc5 15. Bf4 {1-0 Psarouda,E-Makka,I GRE-chT Athens 1996 (3)}) 9. Bb5+ {[%emt 0:13:30]} Bd7 {[%emt 0:00:47]} 10. Qe2 {[%emt 0:00:09]} Bxb5 {[%emt 0:02:14]} 11. Qxb5+ {[%emt 0:00:05]} Qd7 {[%emt 0:00:07] Not much happened in this game.   Weighted Error Value: White=0.05 (flawless) /Black=0.00 (flawless)   OK:         	White=3     	Black=3      Best:        	---       	Black=1} 1/2-1/2

[Event "FIDE WSTC Open 50 2025"]
[Site "Prague"]
[Date "2025.02.21"]
[Round "5.20"]
[White "Arnason, Jon L"]
[Black "Krizsany, Laszlo"]
[Result "1-0"]
[Annotator "TA"]
[ECO "B40"]
[WhiteElo "2405"]
[BlackElo "2303"]
[PlyCount "83"]
[EventDate "2025.02.17"]
[EventType "team-tourn"]
[EventCountry "CZE"]
[SourceTitle "playchess.com"]
[Source "ChessBase"]
[SourceQuality "1"]
[TimeControl "40/5400+30:1800+30"]

{[%evp 10,83,64,23,18,14,58,55,63,60,65,63,73,58,67,55,63,59,65,54,64,59,56,56,75,50,133,133,131,104,145,136,143,151,150,108,108,96,130,128,165,137,190,188,189,185,186,186,190,173,214,193,208,211,215,199,191,180,179,191,190,186,172,162,326,322,334,329,315,316,687,680,1001,972,860,846]} 1. e4 {[%emt 0:00:08]} c5 {[%emt 0:00:07]} 2. Nf3 {[%emt 0:00:09]} e6 {[%emt 0:00:11]} 3. d4 {[%emt 0:00:47]} cxd4 {[%emt 0:00:09]} 4. Nxd4 {[%emt 0:00:06]} Nf6 {[%emt 0:00:21]} 5. Nc3 {[%emt 0:00:16]} Qb6 {[%emt 0:00:21]} 6. Nb3 {[%emt 0:11:43]} Bb4 {[%emt 0:00:11] B40: Sicilian: 2...e6, Unusual lines.} 7. Bd2 {[%emt 0:02:07][%cal Bc1d2,Bd2c3,Bc3d4][%mdl 32]} Bxc3 {[%emt 0:01:25]} 8. Bxc3 {[%emt 0:00:18]} Nxe4 {[%emt 0:00:07][%csl Ge4][%cal Rb6f2] [#] White is slightly better.} 9. Bd4 {[%emt 0:01:52]} (9. Bxg7 $2 Qxf2#) 9... Qb4+ {[%emt 0:00:10]} 10. c3 {[%emt 0:01:02]} Qe7 {[%emt 0:00:12]} 11. Qg4 {[%emt 0:09:53]} f5 $146 {[%emt 0:04:58]} ({Predecessor:} 11... Nf6 12. Qxg7 Rf8 13. Bxf6 Qd6 14. Be5 Qc6 15. O-O-O d5 16. Nd4 Qb6 17. Qxh7 f6 18. Bc7 Rf7 19. Qg8+ Rf8 20. Qg6+ {1-0 Shvets,A-Taranenko,A Dnipropetrovsk Sinitsin Memorial 6th 2007 (9.9)}) 12. Qxg7 {[%emt 0:00:21] White is more active.} Qxg7 {[%emt 0:00:15] A sharp opening} 13. Bxg7 {[%emt 0:00:05]} Rg8 {[%emt 0:00:09]} 14. Bd4 {[%emt 0:04:29]} Nc6 {[%emt 0:00:33]} 15. Be3 $36 {[%emt 0:00:58][%mdl 2048] White has the initiative.} b6 {[%emt 0:00:46]} 16. a4 {[%emt 0:08:41]} Bb7 {[%emt 0:31:07]} 17. a5 {[%emt 0:03:50]} Nxa5 {[%emt 0:04:43]} ({Black should play} 17... d5 $14) 18. Nxa5 $16 {[%emt 0:02:11]} bxa5 {[%emt 0:00:05]} 19. Rxa5 {[%emt 0:00:26][%cal Of2f3]} Nf6 {[%emt 0:06:32]} 20. f3 $1 {[%emt 0:03:52]} (20. Bxa7 $6 Bxg2 21. Bxg2 Rxg2 $11) (20. Rxa7 $6 Rxa7 21. Bxa7 Bxg2 $14) 20... Nd5 {[%emt 0:01:36]} 21. Bd2 {[%emt 0:06:50]} (21. Bxa7 $6 Ne3 $14) 21... Ne7 {[%emt 0:03:36]} 22. b4 {[%emt 0:01:47]} Nc6 {[%emt 0:02:22]} 23. Ra4 {[%emt 0:00:37]} Ne5 {[%emt 0:01:53][%cal Oe5f3]} 24. Kf2 {[%emt 0:03:14]} d5 {[%emt 0:09:23]} 25. Bb5+ {[%emt 0:02:15]} Bc6 {[%emt 0:05:48]} (25... Kf7 $16 26. Be2 a6) 26. Bxc6+ $18 {[%emt 0:01:23]} Nxc6 {[%emt 0:00:02]} 27. Re1 {[%emt 0:05:19]} Nd8 {[%emt 0:01:37]} 28. Ra5 {[%emt 0:04:06]} Kd7 {[%emt 0:01:50]} 29. Ra6 {[%emt 0:01:21]} Kc8 {[%emt 0:03:44]} 30. h4 {[%emt 0:02:12]} Kb7 {[%emt 0:02:13]} 31. b5 {[%emt 0:01:12]} Rg7 {[%emt 0:01:32]} 32. Bg5 {[%emt 0:02:04]} Rc7 {[%emt 0:01:09]} 33. Rd6 {[%emt 0:06:32]} Nf7 {[%emt 0:02:11]} 34. Rdxe6 {[%emt 0:00:07]} Nxg5 {[%emt 0:00:32]} 35. hxg5 {[%emt 0:00:05]} Rxc3 {[%emt 0:00:16][%mdl 4096] Endgame KRR-KRR} 36. Rd6 {[%emt 0:03:06] Hoping for Re7+.} Rg8 $2 {[%emt 0:02:50] [#]} (36... f4 {is a better defense.} 37. Re5 (37. Rxd5 a5 $18) 37... Rg8 38. Re7+ (38. Rdxd5 Rc2+ 39. Re2 Rc7 $18) (38. Rexd5 Rc7 $18) 38... Rc7 39. Rxc7+ Kxc7 40. Rxd5 Rg6) 37. f4 {[%emt 0:01:54]} (37. Rxd5 $6 Rxg5 38. Re7+ Kb6 $16) 37... Rc4 {[%emt 0:00:57]} 38. Re7+ {[%emt 0:00:28]} (38. Rxd5 Rxf4+ 39. Kg1 Re4 $18) 38... Kb8 {[%emt 0:00:37]} 39. g3 {[%emt 0:00:27]} ({Not} 39. Rxh7 Rxf4+ 40. Ke3 Rb4 $18) 39... Rb4 $2 {[%emt 0:01:02]} (39... Rc5 40. Rxh7 Rc2+ 41. Kf3 Rc3+ 42. Kg2 Rc2+ 43. Kf1 Rgc8) 40. Rxd5 {[%emt 0:01:10] White is clearly winning.} Rc8 {[%emt 0:00:11]} 41. Rxf5 {[%emt 0:31:01]} Rb3 {[%emt 0:30:40]} 42. Kg2 {[%emt 0:02:47] Weighted Error Value: White=0.06 (flawless) /Black=0.41  Mistake:       	---       	Black=4      Inaccurate:     	---       	Black=4      OK:         	White=18    	Black=14     Best:        	White=3     	---} (42. Rxh7 $2 {is a self mate.} Rc2+ 43. Kg1 Rb1#) 1-0

[Event "FIDE WSTC Open 50 2025"]
[Site "Prague"]
[Date "2025.02.21"]
[Round "5.21"]
[White "Farrell, Neil"]
[Black "Svensson, Bengt"]
[Result "1/2-1/2"]
[Annotator "RC"]
[ECO "D26"]
[WhiteElo "2116"]
[BlackElo "2297"]
[PlyCount "60"]
[EventDate "2025.02.17"]
[EventType "team-tourn"]
[EventCountry "CZE"]
[SourceTitle "playchess.com"]
[Source "ChessBase"]
[SourceQuality "1"]
[TimeControl "40/5400+30:1800+30"]

1. d4 {[%emt 0:00:05]} d5 {[%emt 0:00:07]} 2. c4 {[%emt 0:00:09]} dxc4 {[%emt 0:00:27]} 3. Nf3 {[%emt 0:00:09]} Nf6 {[%emt 0:00:28]} 4. e3 {[%emt 0:00:12]} e6 {[%emt 0:00:17]} 5. Bxc4 {[%emt 0:00:22]} a6 {[%emt 0:00:05]} 6. O-O {[%emt 0:00:14]} c5 {[%emt 0:00:22]} 7. Bb3 {[%emt 0:00:18]} Nc6 {[%emt 0:00:50]} 8. Nc3 {[%emt 0:00:45]} cxd4 {[%emt 0:01:11]} 9. exd4 {[%emt 0:00:18]} Be7 {[%emt 0:00:09]} 10. Bg5 {[%emt 0:01:19]} O-O {[%emt 0:00:35]} 11. Qd2 {[%emt 0:00:56]} Na5 {[%emt 0:04:14]} 12. Bc2 {[%emt 0:01:11]} b5 {[%emt 0:00:09]} 13. Qf4 {[%emt 0:03:22]} Bb7 {[%emt 0:01:26]} 14. Qh4 {[%emt 0:23:25]} g6 {[%emt 0:01:29]} 15. Ne4 {[%emt 0:06:33]} Bxe4 {[%emt 0:04:37]} 16. Bxe4 {[%emt 0:00:15]} Ra7 {[%emt 0:05:14]} 17. Bd3 {[%emt 0:15:11]} Nh5 {[%emt 0:10:13]} 18. Bxe7 {[%emt 0:09:21]} Qxe7 {[%emt 0:00:26]} 19. Qxe7 {[%emt 0:07:23]} Rxe7 {[%emt 0:01:07]} 20. Rfc1 {[%emt 0:00:05]} Nf4 {[%emt 0:09:56]} 21. Bf1 {[%emt 0:00:12]} Nd5 {[%emt 0:03:12]} 22. Ne5 {[%emt 0:08:27]} Rb7 {[%emt 0:06:58]} 23. Rc5 {[%emt 0:01:06]} Rd8 {[%emt 0:05:53]} 24. Rac1 {[%emt 0:01:12]} Nc4 {[%emt 0:11:00]} 25. b3 {[%emt 0:03:24]} Nxe5 {[%emt 0:01:48]} 26. dxe5 {[%emt 0:00:14]} Rbd7 {[%emt 0:03:08]} 27. a4 {[%emt 0:03:00]} bxa4 {[%emt 0:01:58]} 28. bxa4 {[%emt 0:00:05]} Nb4 {[%emt 0:01:23]} 29. Rc8 {[%emt 0:04:56]} Kg7 {[%emt 0:01:25]} 30. Rxd8 {[%emt 0:01:51]} Rxd8 {[%emt 0:00:05]} 1/2-1/2

[Event "FIDE WSTC Open 50 2025"]
[Site "Prague"]
[Date "2025.02.21"]
[Round "5.22"]
[White "Svenn, Gosta"]
[Black "Neave, George"]
[Result "1-0"]
[Annotator "RC"]
[ECO "A45"]
[WhiteElo "2290"]
[BlackElo "2074"]
[PlyCount "49"]
[EventDate "2025.02.17"]
[EventType "team-tourn"]
[EventCountry "CZE"]
[SourceTitle "playchess.com"]
[Source "ChessBase"]
[SourceQuality "1"]
[TimeControl "40/5400+30:1800+30"]

1. d4 {[%emt 0:00:07]} Nf6 {[%emt 0:00:06]} 2. Nc3 {[%emt 0:00:06]} d5 {[%emt 0:00:17]} 3. Bf4 {[%emt 0:00:06]} g6 {[%emt 0:00:12]} 4. e3 {[%emt 0:00:11]} Bg7 {[%emt 0:00:06]} 5. h4 {[%emt 0:00:36]} h5 {[%emt 0:03:41]} 6. Nf3 {[%emt 0:00:30]} O-O {[%emt 0:01:50]} 7. Ne5 {[%emt 0:00:55]} c5 {[%emt 0:00:29]} 8. Be2 {[%emt 0:01:59]} cxd4 {[%emt 0:00:17]} 9. exd4 {[%emt 0:00:22]} Nc6 {[%emt 0:00:14]} 10. Qd2 {[%emt 0:04:10]} Ne4 {[%emt 0:17:58]} 11. Nxe4 {[%emt 0:11:20]} dxe4 {[%emt 0:00:06]} 12. Nxc6 {[%emt 0:02:45]} bxc6 {[%emt 0:00:58]} 13. O-O-O {[%emt 0:00:12]} Qb6 {[%emt 0:05:37]} 14. Bh6 {[%emt 0:11:37]} Rb8 {[%emt 0:08:55]} 15. b3 {[%emt 0:00:10]} a5 {[%emt 0:01:54]} 16. Bxg7 {[%emt 0:05:08]} Kxg7 {[%emt 0:00:08]} 17. g4 {[%emt 0:00:10]} Bxg4 {[%emt 0:08:09]} 18. Bxg4 {[%emt 0:00:10]} hxg4 {[%emt 0:00:03]} 19. h5 {[%emt 0:00:10]} Rh8 {[%emt 0:12:26]} 20. Qf4 {[%emt 0:25:02]} c5 {[%emt 0:01:31]} 21. h6+ {[%emt 0:07:11]} Kf8 {[%emt 0:03:15]} 22. dxc5 {[%emt 0:00:16]} Qa7 {[%emt 0:03:42]} 23. c6 {[%emt 0:02:43]} Re8 {[%emt 0:06:50]} 24. c7 {[%emt 0:11:48]} Qb7 {[%emt 0:06:33]} 25. Rd8 {[%emt 0:02:05]} 1-0

[Event "FIDE WSTC Open 50 2025"]
[Site "Prague"]
[Date "2025.02.21"]
[Round "5.23"]
[White "Robertson, Ian C."]
[Black "Jaderberg, Bjorn"]
[Result "1/2-1/2"]
[Annotator "ChessBase"]
[ECO "C01"]
[WhiteElo "2064"]
[BlackElo "2134"]
[PlyCount "91"]
[EventDate "2025.02.17"]
[EventType "team-tourn"]
[EventCountry "CZE"]
[SourceTitle "playchess.com"]
[Source "ChessBase"]
[SourceQuality "1"]
[TimeControl "40/5400+30:1800+30"]

1. d4 {[%emt 0:00:08]} e6 {[%emt 0:00:11]} 2. e4 {[%emt 0:01:32]} d5 {[%emt 0:00:13]} 3. exd5 {[%emt 0:00:07]} exd5 {[%emt 0:00:10]} 4. Nf3 {[%emt 0:00:05]} c6 {[%emt 0:00:28]} 5. c4 {[%emt 0:02:46]} Nf6 {[%emt 0:00:17]} 6. Nc3 {[%emt 0:00:18]} Be7 {[%emt 0:00:20]} 7. cxd5 {[%emt 0:01:54]} Nxd5 {[%emt 0:03:48]} 8. Bc4 {[%emt 0:05:23]} Be6 {[%emt 0:05:31]} 9. Qb3 {[%emt 0:03:26]} b5 {[%emt 0:01:07]} 10. Bxd5 {[%emt 0:01:24]} Bxd5 {[%emt 0:00:19]} 11. Nxd5 {[%emt 0:00:15]} Qxd5 {[%emt 0:00:10]} 12. Be3 {[%emt 0:19:01]} f6 {[%emt 0:14:12]} 13. O-O {[%emt 0:05:37]} Na6 {[%emt 0:01:38]} 14. Nd2 {[%emt 0:05:39]} Nb4 {[%emt 0:15:12]} 15. Rfc1 {[%emt 0:04:38]} Qxb3 {[%emt 0:01:59]} 16. Nxb3 {[%emt 0:00:27]} Kd7 {[%emt 0:00:22]} 17. a3 {[%emt 0:14:23]} Nd5 {[%emt 0:00:20]} 18. Bd2 {[%emt 0:01:03]} Bd6 {[%emt 0:03:35]} 19. g3 {[%emt 0:04:56]} h5 {[%emt 0:01:49]} 20. h4 {[%emt 0:00:43]} Rhe8 {[%emt 0:00:37]} 21. Re1 {[%emt 0:03:52]} Rxe1+ {[%emt 0:00:19]} 22. Rxe1 {[%emt 0:00:40]} Re8 {[%emt 0:00:14]} 23. Rxe8 {[%emt 0:01:22]} Kxe8 {[%emt 0:00:41]} 24. Kg2 {[%emt 0:06:15]} Kd7 {[%emt 0:02:31]} 25. Kf3 {[%emt 0:00:56]} Ke6 {[%emt 0:00:46]} 26. Ke4 {[%emt 0:11:19]} Nb6 {[%emt 0:06:38]} 27. Na5 {[%emt 0:03:37]} f5+ {[%emt 0:01:26]} 28. Kd3 {[%emt 0:00:35]} Kd5 {[%emt 0:00:14]} 29. Nb3 {[%emt 0:01:44]} Nc4 {[%emt 0:00:36]} 30. Bc1 {[%emt 0:00:18]} Be7 {[%emt 0:06:30]} 31. Na1 {[%emt 0:00:27]} Bf6 {[%emt 0:06:25]} 32. Nc2 {[%emt 0:00:09]} c5 {[%emt 0:00:31]} 33. b3 {[%emt 0:00:35]} Nd6 {[%emt 0:05:20]} 34. Ne3+ {[%emt 0:00:27]} Kc6 {[%emt 0:00:13]} 35. dxc5 {[%emt 0:00:55]} Kxc5 {[%emt 0:00:12]} 36. Nc2 {[%emt 0:00:31]} a5 {[%emt 0:00:34]} 37. Be3+ {[%emt 0:00:15]} Kc6 {[%emt 0:00:56]} 38. Nd4+ {[%emt 0:00:38]} Kd5 {[%emt 0:00:45]} 39. Ne2 {[%emt 0:00:18]} Be5 {[%emt 0:00:33]} 40. Nf4+ {[%emt 0:01:16]} Bxf4 {[%emt 0:00:39]} 41. Bxf4 {[%emt 0:30:20]} Ne4 {[%emt 0:30:38]} 42. f3 {[%emt 0:00:00]} Nc5+ {[%emt 0:00:00]} 43. Kc3 {[%emt 0:00:00]} a4 {[%emt 0:00:00]} 44. bxa4 {[%emt 0:00:00]} Nxa4+ {[%emt 0:00:00]} 45. Kb4 {[%emt 0:00:00]} Kc6 {[%emt 0:00:00]} 46. Be5 {[%emt 0:00:00]} 1/2-1/2

[Event "FIDE WSTC Open 50 2025"]
[Site "Prague"]
[Date "2025.02.21"]
[Round "5.24"]
[White "Wengholm, Anders"]
[Black "Sanger, Mark"]
[Result "1/2-1/2"]
[Annotator "ChessBase"]
[ECO "A04"]
[WhiteElo "2132"]
[BlackElo "2135"]
[PlyCount "80"]
[EventDate "2025.02.17"]
[EventType "team-tourn"]
[EventCountry "CZE"]
[SourceTitle "playchess.com"]
[Source "ChessBase"]
[SourceQuality "1"]
[TimeControl "40/5400+30:1800+30"]

1. Nf3 {[%emt 0:00:06]} e6 {[%emt 0:00:12]} 2. c4 {[%emt 0:01:15]} Nf6 {[%emt 0:00:21]} 3. g3 {[%emt 0:00:21]} b6 {[%emt 0:00:08]} 4. Bg2 {[%emt 0:00:17]} Bb7 {[%emt 0:00:08]} 5. O-O {[%emt 0:00:18]} Be7 {[%emt 0:00:17]} 6. Nc3 {[%emt 0:03:54]} Ne4 {[%emt 0:07:09]} 7. Nxe4 {[%emt 0:01:37]} Bxe4 {[%emt 0:00:08]} 8. d3 {[%emt 0:00:07]} Bb7 {[%emt 0:00:11]} 9. e4 {[%emt 0:00:06]} c5 {[%emt 0:03:09]} 10. Re1 {[%emt 0:03:32]} O-O {[%emt 0:01:16]} 11. d4 {[%emt 0:01:21]} d6 {[%emt 0:02:27]} 12. d5 {[%emt 0:01:15]} e5 {[%emt 0:01:20]} 13. Bh3 {[%emt 0:06:15]} Bc8 {[%emt 0:01:43]} 14. Bxc8 Qxc8 15. Kg2 {[%emt 0:01:36]} Nd7 {[%emt 0:03:17]} 16. Qd3 {[%emt 0:01:10]} Qd8 {[%emt 0:02:09]} 17. a3 {[%emt 0:02:44]} a5 {[%emt 0:03:13]} 18. b3 {[%emt 0:00:20]} Nf6 {[%emt 0:02:40]} 19. Bd2 {[%emt 0:01:47]} Nh5 {[%emt 0:01:14]} 20. b4 {[%emt 0:08:06]} Qd7 {[%emt 0:03:07]} 21. bxc5 {[%emt 0:03:35]} bxc5 {[%emt 0:00:07]} 22. h3 {[%emt 0:05:43]} f5 {[%emt 0:04:20]} 23. Rab1 {[%emt 0:04:57]} Rf7 {[%emt 0:08:08]} 24. exf5 {[%emt 0:28:57]} Rxf5 {[%emt 0:13:05]} 25. Re3 {[%emt 0:07:27]} Raf8 {[%emt 0:10:05]} 26. Rf1 {[%emt 0:09:01]} Qe8 {[%emt 0:12:28]} 27. Nh2 {[%emt 0:03:03]} Qg6 {[%emt 0:03:29]} 28. Rf3 {[%emt 0:00:47]} Bg5 {[%emt 0:09:54]} 29. Rxf5 {[%emt 0:00:29]} Rxf5 {[%emt 0:01:07]} 30. Ng4 {[%emt 0:00:38]} Bxd2 {[%emt 0:01:39]} 31. Qxd2 {[%emt 0:00:12]} Nf4+ {[%emt 0:02:14]} 32. gxf4 {[%emt 0:01:09]} h5 {[%emt 0:00:23]} 33. f3 {[%emt 0:01:02]} Rxf4 {[%emt 0:00:49]} 34. Qxa5 {[%emt 0:01:08]} hxg4 {[%emt 0:01:15]} 35. hxg4 {[%emt 0:00:19]} e4 {[%emt 0:00:11]} 36. Qd8+ {[%emt 0:00:38]} Rf8 {[%emt 0:00:26]} 37. Qd7 {[%emt 0:00:16]} exf3+ {[%emt 0:00:49]} 38. Rxf3 {[%emt 0:00:11]} Qc2+ {[%emt 0:01:33]} 39. Kg3 {[%emt 0:00:15]} Rxf3+ {[%emt 0:00:16]} 40. Kxf3 {[%emt 0:00:09]} Qd3+ {[%emt 0:00:56]} 1/2-1/2

[Event "FIDE WSTC Open 50 2025"]
[Site "Prague"]
[Date "2025.02.21"]
[Round "5.25"]
[White "Van der Werf, Mark"]
[Black "Olivier, Pierre"]
[Result "1-0"]
[Annotator "TA"]
[ECO "D11"]
[WhiteElo "2416"]
[BlackElo "2152"]
[PlyCount "77"]
[EventDate "2025.02.17"]
[EventType "team-tourn"]
[EventCountry "CZE"]
[SourceTitle "playchess.com"]
[Source "ChessBase"]
[SourceQuality "1"]
[TimeControl "40/5400+30:1800+30"]

{[%evp 10,77,0,0,3,0,0,0,0,0,27,18,31,16,28,20,51,60,49,54,42,37,60,48,70,66,130,104,104,102,152,150,164,99,97,96,89,91,91,91,123,99,206,219,200,147,233,225,233,235,235,224,224,170,160,159,206,185,203,181,206,211,212,217,216,209,215,231,243,222]} 1. d4 {[%emt 0:00:04]} d5 {[%emt 0:00:05]} 2. c4 {[%emt 0:00:04]} c6 {[%emt 0:00:04]} 3. Nf3 {[%emt 0:02:05]} Nf6 {[%emt 0:00:16]} 4. Qc2 {[%emt 0:00:05]} g6 {[%emt 0:07:18]} 5. cxd5 {[%emt 0:00:39]} cxd5 {[%emt 0:01:59]} 6. Nc3 {[%emt 0:00:06]} Nc6 {[%emt 0:03:04] D11: Slav Defence: 3 Nf3 sidelines and 3...Nf6 4 e3 Bg4.} 7. Bf4 {[%emt 0:00:26]} Bg7 {[%emt 0:00:24]} 8. e3 {[%emt 0:00:08]} O-O {[%emt 0:03:39] The position is equal.} 9. Be2 {[%emt 0:00:05]} Bf5 {[%emt 0:06:59]} 10. Qb3 {[%emt 0:00:13]} Na5 {[%emt 0:09:20]} 11. Qb4 {[%emt 0:02:27]} Ne4 {[%emt 0:04:39]} 12. Rc1 {[%emt 0:05:16]} Rc8 {[%emt 0:02:49]} 13. O-O {[%emt 0:00:51]} Nxc3 {[%emt 0:00:41]} 14. Rxc3 {[%emt 0:00:27]} Rxc3 {[%emt 0:00:07]} 15. Qxc3 {[%emt 0:01:34] [#]} Nc6 {[%emt 0:17:04]} 16. b4 $146 {[%emt 0:07:25]} (16. Qb3 Qd7 17. Rc1 Bg4 18. h3 Bxf3 19. Bxf3 e6 20. Be2 Rc8 21. Qb5 a6 22. Qa4 {1-0 Andreikin,D (2729)-Ivic,V (2557) Titled Tuesday intern op 14th Nov Late blitz 2023 (7)}) 16... a6 {[%emt 0:04:26]} 17. a4 {[%emt 0:04:51]} Bg4 {[%emt 0:06:39]} (17... Qd7 $14) 18. Rc1 {[%emt 0:15:45][%cal Bf1c1,Bc1d1,Bd1d5][%mdl 32]} e5 {[%emt 0:19:51]} 19. dxe5 {[%emt 0:02:23]} Bxf3 {[%emt 0:00:44]} ({Black should try} 19... Qe7) 20. Bxf3 $16 {[%emt 0:00:57]} (20. gxf3 Re8 $16) 20... d4 {[%emt 0:00:32]} 21. exd4 {[%emt 0:07:19]} ({White should play} 21. Qc5 $18 dxe3 22. fxe3 (22. Bxe3 Nxe5 23. Be2 Nd3 $11) (22. Qxe3 Re8 $18)) 21... Nxd4 {[%emt 0:00:33]} 22. Rd1 {[%emt 0:03:51]} (22. Bxb7 $2 {is the wrong capture.} Ne2+ 23. Kf1 Nxc3 $19) 22... Nxf3+ {[%emt 0:00:09]} 23. Qxf3 {[%emt 0:00:04]} Qe7 {[%emt 0:01:49][%csl LRb4,LRe5] Black is weak on the dark squares} 24. Qe4 {[%emt 0:05:12]} Re8 {[%emt 0:05:32][%cal Rg7e5]} 25. h3 {[%emt 0:05:44]} b5 {[%emt 0:02:01]} (25... Bxe5 $16 26. Bxe5 Qxe5 27. Qxb7 Qf6) 26. axb5 $18 {[%emt 0:01:43] White is clearly better.} axb5 {[%emt 0:00:01][%cal Rg7e5]} 27. Rd5 {[%emt 0:03:25]} f5 {[%emt 0:02:06]} (27... g5 $16) 28. Qd4 {[%emt 0:03:06]} g5 {[%emt 0:00:20]} 29. Rd7 {[%emt 0:02:22]} Qe6 {[%emt 0:00:01]} 30. Bxg5 {[%emt 0:00:27][%cal Bf4g5,Bg5e7,Be7c5][%mdl 32]} Qxe5 {[%emt 0:00:19]} 31. Qxe5 {[%emt 0:02:28]} Rxe5 {[%emt 0:00:02][%mdl 4096] Endgame KRB-KRB. White is a pawn up.} 32. Be7 {[%emt 0:01:42] White has more active pieces.} h6 {[%emt 0:02:15]} (32... Re1+ $16 {was necessary.} 33. Kh2 Re4) 33. Bc5 {[%emt 0:01:02][%cal Od7g7] [#] And now Rxg7+! would win.} Re1+ {[%emt 0:00:13]} 34. Kh2 {[%emt 0:00:10]} Be5+ {[%emt 0:00:23]} 35. g3 {[%emt 0:00:05]} f4 {[%emt 0:00:12]} 36. gxf4 {[%emt 0:01:40]} Bxf4+ {[%emt 0:00:01]} 37. Kg2 {[%emt 0:00:08]} Bg5 {[%emt 0:00:28]} 38. Rb7 {[%emt 0:00:30]} Re4 {[%emt 0:01:36]} 39. Rxb5 {[%emt 0:00:50] Weighted Error Value: White=0.11 (very precise) /Black=0.21 (precise)   Mistake:       	White=1     	Black=5      Inaccurate:     	---       	Black=3      OK:         	White=13    	Black=13     Best:        	White=4     	---} 1-0